fUSD/lending_fUSD_20241205
["ID","MTS","AMOUNT","RATE_DAILY","PERIOD"]
[344359339,1733370638378,-500.0,7.499e-05,2]
[344359340,1733370638388,-500.0,7.499e-05,2]
[344359341,1733370638398,-501.35449513,7.499e-05,2]
[344359342,1733370638408,-500.0,7.499e-05,2]
[344359343,1733370638417,-500.0,7.499e-05,2]
[344359344,1733370638427,-500.0,7.499e-05,2]
[344359345,1733370638437,-161.63727734,7.499e-05,2]
[344359347,1733370638719,-500.0,7.499e-05,2]
[344359348,1733370638730,-500.0,7.499e-05,2]
[344359349,1733370638740,-500.0,7.499e-05,2]
[344359350,1733370638762,-452.64888365,7.499e-05,2]
[344359351,1733370638773,-504.93564682,7.499e-05,2]
[344359352,1733370638783,-297.75134033,7.499e-05,2]
[344359353,1733370638793,-633.91704968,7.499e-05,2]
[344359354,1733370638803,-1146.12,7.499e-05,2]
[344359355,1733370638813,-1146.12,7.499e-05,2]
[344359356,1733370638823,-1146.12,7.499e-05,2]
[344359357,1733370638834,-1146.12,7.499e-05,2]
[344359358,1733370638843,-1146.12,7.499e-05,2]
[344359359,1733370638854,-500.0,7.499e-05,2]
[344359360,1733370638864,-1146.12,7.499e-05,2]
[344359361,1733370638875,-500.0,7.499e-05,2]
[344359362,1733370638886,-1146.12,7.499e-05,2]
[344359363,1733370638896,-500.0,7.499e-05,2]
[344359364,1733370638906,-1146.12,7.499e-05,2]
[344359365,1733370638916,-500.0,7.499e-05,2]
[344359366,1733370638926,-1146.12,7.499e-05,2]
[344359367,1733370638937,-500.0,7.499e-05,2]
[344359368,1733370638947,-1146.12,7.499e-05,2]
[344359369,1733370638957,-500.0,7.499e-05,2]
[344359370,1733370638968,-1146.12,7.499e-05,2]
[344359371,1733370638978,-500.0,7.499e-05,2]
[344359372,1733370638988,-1146.12,7.499e-05,2]
[344359373,1733370638999,-500.0,7.499e-05,2]
[344359374,1733370639009,-1146.12,7.499e-05,2]
[344359376,1733370639019,-500.0,7.499e-05,2]
[344359377,1733370639029,-500.0,7.499e-05,2]
[344359378,1733370639039,-1146.12,7.499e-05,2]
[344359379,1733370639049,-500.0,7.499e-05,2]
[344359380,1733370639059,-1146.12,7.499e-05,2]
[344359381,1733370639068,-500.0,7.499e-05,2]
[344359382,1733370639078,-1146.12,7.499e-05,2]
[344359383,1733370639088,-500.37729391,7.499e-05,2]
[344359384,1733370639098,-1146.12,7.499e-05,2]
[344359385,1733370639108,-1146.12,7.499e-05,2]
[344359386,1733370639117,-1146.12,7.499e-05,2]
[344359387,1733370639128,-1146.12,7.499e-05,2]
[344359388,1733370639138,-1146.12,7.499e-05,2]
[344359389,1733370639148,-1146.12,7.499e-05,2]
[344359390,1733370639159,-1146.12,7.499e-05,2]
[344359391,1733370639170,-1146.1462861,7.499e-05,2]
[344359392,1733370639180,-500.0,7.499e-05,2]
[344359393,1733370639196,-500.0,7.499e-05,2]
[344359394,1733370639213,-501.46417012,7.499e-05,2]
[344359395,1733370639224,-500.0,7.499e-05,2]
[344359396,1733370639234,-500.0,7.499e-05,2]
[344359397,1733370639245,-500.0,7.499e-05,2]
[344359398,1733370639256,-500.0,7.499e-05,2]
[344359399,1733370639266,-471.51030533,7.499e-05,2]
[344359400,1733370639277,-500.0,7.499e-05,2]
[344359401,1733370639287,-500.0,7.499e-05,2]
[344359402,1733370639297,-500.0,7.499e-05,2]
[344359403,1733370639307,-569.28008624,7.499e-05,2]
[344359404,1733370639318,-500.0,7.499e-05,2]
[344359405,1733370639328,-500.0,7.499e-05,2]
[344359406,1733370639338,-500.0,7.499e-05,2]
[344359407,1733370639347,-564.83940969,7.499e-05,2]
[344359408,1733370639357,-500.0,7.499e-05,2]
[344359409,1733370639367,-201.97878572,7.499e-05,2]
[344359410,1733370639377,-500.0,7.499e-05,2]
[344359411,1733370639387,-500.0,7.499e-05,2]
[344359412,1733370639397,-500.0,7.499e-05,2]
[344359413,1733370639407,-500.0,7.499e-05,2]
[344359414,1733370639417,-500.0,7.499e-05,2]
[344359415,1733370639426,-500.0,7.499e-05,2]
[344359416,1733370639436,-500.0,7.499e-05,2]
[344359417,1733370639446,-500.0,7.499e-05,2]
[344359418,1733370639458,-500.0,7.499e-05,2]
[344359419,1733370639469,-154.76206306,7.499e-05,2]
[344359420,1733370639479,-500.0,7.499e-05,2]
[344359421,1733370639489,-500.0,7.499e-05,2]
[344359422,1733370639499,-500.0,7.499e-05,2]
[344359423,1733370639510,-500.0,7.499e-05,2]
[344359424,1733370639519,-500.0,7.499e-05,2]
[344359425,1733370639529,-415.92,7.499e-05,2]
[344359426,1733370639539,-500.0,7.499e-05,2]
[344359427,1733370639549,-503.08710572,7.499e-05,2]
[344359428,1733370639559,-237.74,7.499e-05,2]
[344359429,1733370639570,-500.0,7.499e-05,2]
[344359430,1733370639581,-500.0,7.499e-05,2]
[344359431,1733370639591,-500.0,7.499e-05,2]
[344359432,1733370639602,-500.0,7.499e-05,2]
[344359433,1733370639611,-500.0,7.499e-05,2]
[344359434,1733370639621,-500.0,7.499e-05,2]
[344359435,1733370639632,-531.07457214,7.499e-05,2]
[344359436,1733370639643,-500.0,7.499e-05,2]
[344359437,1733370639659,-511.58445121,7.499e-05,2]
[344359438,1733370639669,-500.0,7.499e-05,2]
[344359439,1733370639680,-236.5902922,7.499e-05,2]
[344359440,1733370639690,-271.51785477,7.499e-05,2]
[344359441,1733370639700,-523.80691041,7.499e-05,2]
[344359442,1733370639715,-500.6391841,7.499e-05,2]
[344359443,1733370639725,-500.0,7.499e-05,2]
[344359444,1733370639735,-500.0,7.499e-05,2]
[344359445,1733370639745,-500.0,7.499e-05,2]
[344359446,1733370639755,-221.71007181,7.499e-05,2]
[344359447,1733370639765,-500.0,7.499e-05,2]
[344359448,1733370639775,-500.0,7.499e-05,2]
[344359449,1733370639786,-500.0,7.499e-05,2]
[344359450,1733370639795,-345.22531922,7.499e-05,2]
[344359451,1733370639806,-543.75,7.499e-05,2]
[344359452,1733370639816,-543.75,7.499e-05,2]
[344359453,1733370639826,-543.75,7.499e-05,2]
[344359454,1733370639836,-543.75,7.499e-05,2]
[344359455,1733370639846,-543.75,7.499e-05,2]
[344359456,1733370639856,-543.75,7.499e-05,2]
[344359457,1733370639866,-543.75,7.499e-05,2]
[344359458,1733370639877,-543.75,7.499e-05,2]
[344359459,1733370639887,-543.75,7.499e-05,2]
[344359460,1733370639898,-543.75,7.499e-05,2]
[344359461,1733370639908,-543.75,7.499e-05,2]
[344359462,1733370639918,-543.75,7.499e-05,2]
[344359463,1733370639928,-543.75,7.499e-05,2]
[344359464,1733370639938,-543.75,7.499e-05,2]
[344359465,1733370639949,-543.75,7.499e-05,2]
[344359466,1733370639962,-543.75,7.499e-05,2]
[344359467,1733370639973,-543.75,7.499e-05,2]
[344359468,1733370639984,-543.75,7.499e-05,2]
[344359469,1733370639994,-543.75,7.499e-05,2]
[344359471,1733370640004,-504.71023981,7.499e-05,2]
[344359472,1733370640014,-543.75,7.499e-05,2]
[344359474,1733370640025,-543.75,7.499e-05,2]
[344359475,1733370640035,-543.75,7.499e-05,2]
[344359476,1733370640045,-543.75,7.499e-05,2]
[344359477,1733370640056,-543.83,7.499e-05,2]
[344359478,1733370640065,-500.0,7.499e-05,2]
[344359479,1733370640076,-500.0,7.499e-05,2]
[344359480,1733370640086,-322.31478046,7.499e-05,2]
[344359481,1733370640096,-500.0,7.499e-05,2]
[344359482,1733370640111,-500.0,7.499e-05,2]
[344359483,1733370640121,-500.0,7.499e-05,2]
[344359484,1733370640134,-500.0,7.499e-05,2]
[344359485,1733370640144,-500.0,7.499e-05,2]
[344359486,1733370640155,-500.0,7.499e-05,2]
[344359487,1733370640165,-407.47236545,7.499e-05,2]
[344359488,1733370640175,-500.0,7.499e-05,2]
[344359489,1733370640186,-500.0,7.499e-05,2]
[344359490,1733370640200,-500.0,7.499e-05,2]
[344359491,1733370640211,-500.0,7.499e-05,2]
[344359492,1733370640221,-500.0,7.499e-05,2]
[344359493,1733370640232,-500.0,7.499e-05,2]
[344359494,1733370640242,-500.0,7.499e-05,2]
[344359495,1733370640253,-500.0,7.499e-05,2]
[344359496,1733370640263,-500.0,7.499e-05,2]
[344359497,1733370640274,-500.0,7.499e-05,2]
[344359498,1733370640285,-500.0,7.499e-05,2]
[344359499,1733370640295,-500.0,7.499e-05,2]
[344359500,1733370640305,-500.0,7.499e-05,2]
[344359501,1733370640315,-500.0,7.499e-05,2]
[344359502,1733370640325,-500.0,7.499e-05,2]
[344359503,1733370640336,-500.0,7.499e-05,2]
[344359504,1733370640347,-500.0,7.499e-05,2]
[344359505,1733370640357,-500.0,7.499e-05,2]
[344359506,1733370640368,-500.0,7.499e-05,2]
[344359507,1733370640378,-500.0,7.499e-05,2]
[344359508,1733370640389,-500.0,7.499e-05,2]
[344359509,1733370640399,-301.68,7.499e-05,2]
[344359510,1733370640410,-500.0,7.499e-05,2]
[344359511,1733370640420,-500.0,7.499e-05,2]
[344359512,1733370640431,-500.0,7.499e-05,2]
[344359513,1733370640441,-500.0,7.499e-05,2]
[344359514,1733370640451,-500.0,7.499e-05,2]
[344359515,1733370640465,-500.0,7.499e-05,2]
[344359516,1733370640476,-500.0,7.499e-05,2]
[344359517,1733370640486,-500.0,7.499e-05,2]
[344359519,1733370640496,-500.0,7.499e-05,2]
[344359520,1733370640506,-500.0,7.499e-05,2]
[344359521,1733370640516,-500.0,7.499e-05,2]
[344359522,1733370640526,-500.0,7.499e-05,2]
[344359523,1733370640536,-500.0,7.499e-05,2]
[344359524,1733370640546,-500.0,7.499e-05,2]
[344359525,1733370640555,-500.0,7.499e-05,2]
[344359526,1733370640565,-500.0,7.499e-05,2]
[344359527,1733370640576,-500.0,7.499e-05,2]
[344359528,1733370640586,-500.0,7.499e-05,2]
[344359529,1733370640597,-500.0,7.499e-05,2]
[344359530,1733370640607,-183.12542569,7.499e-05,2]
[344359531,1733370640617,-500.0,7.499e-05,2]
[344359532,1733370640627,-500.0,7.499e-05,2]
[344359533,1733370640637,-500.0,7.499e-05,2]
[344359534,1733370640647,-337.27263094,7.499e-05,2]
[344359535,1733370640657,-500.0,7.499e-05,2]
[344359536,1733370640666,-500.0,7.499e-05,2]
[344359537,1733370640676,-202.43033559,7.499e-05,2]
[344359538,1733370640686,-500.0,7.499e-05,2]
[344359539,1733370640696,-500.0,7.499e-05,2]
[344359540,1733370640706,-207.96033241,7.499e-05,2]
[344359541,1733370640718,-511.27193436,7.499e-05,2]
[344359542,1733370640728,-499.93,7.5e-05,2]
[344359543,1733370640738,-494357.39526531,7.5e-05,2]
[344359544,1733370640759,-282960.0,7.5e-05,2]
[344359545,1733370640773,-271904.2617876,7.5e-05,2]
[344359546,1733370640785,-700.0,7.5e-05,2]
[344359547,1733370640835,-448.75257643,7.499e-05,2]
[344359548,1733370640844,-102704.02259689,7.5e-05,2]
[344359549,1733370640857,-160584.68007166,7.5e-05,2]
[344359550,1733370640868,-2062.6,7.5e-05,2]
[344359551,1733370640880,-750.43454455,7.5e-05,2]
[344359552,1733370640891,-2388.47374847,7.5e-05,2]
[344359553,1733370640903,-1642.60428772,7.5e-05,2]
[344359554,1733370640915,-10305.544,7.5e-05,2]
[344359555,1733370640927,-292.64624119,7.5e-05,2]
[344359556,1733370640940,-18591078.3674981,7.5e-05,2]
[344359557,1733370641088,-311.98899961,7.5e-05,2]
[344359558,1733370641102,-2588.7417119,7.5e-05,2]
[344359559,1733370641115,-378.47257457,7.5e-05,2]
[344359560,1733370641129,-259.97064975,7.5e-05,2]
[344359565,1733370645161,-500.0,7.499e-05,2]
[344359566,1733370645171,-500.0,7.499e-05,2]
[344359567,1733370645182,-500.0,7.499e-05,2]
[344359568,1733370645193,-500.0,7.499e-05,2]
[344359569,1733370645207,-500.0,7.499e-05,2]
[344359570,1733370645219,-500.0,7.499e-05,2]
[344359572,1733370645230,-256.81104844,7.499e-05,2]
[344359573,1733370645240,-13939.78626339,7.5e-05,2]
[344359574,1733370645755,-4.95902195,7.5e-05,2]
[344359575,1733370645767,-798.87564213,7.5e-05,2]
[344359576,1733370645779,-22599.9999,7.5e-05,2]
[344359577,1733370645790,-20580.6650092,7.5e-05,2]
[344359578,1733370645802,-10289.0358196,7.5e-05,2]
[344359579,1733370645814,-426.4672024,7.5e-05,2]
[344359580,1733370645825,-307.28999999,7.5e-05,2]
[344359581,1733370645836,-415.48499931,7.5e-05,2]
[344359584,1733370645848,-6189.5,7.5e-05,2]
[344359593,1733370645903,-4323.88847856,7.5e-05,2]
[344359595,1733370645915,-412000.00000005,7.5e-05,2]
[344359597,1733370645927,-438119.5676749,7.5e-05,2]
[344359599,1733370645938,-468.88000007,7.5e-05,2]
[344359618,1733370646164,-6191.3618514,7.5e-05,2]
[344359624,1733370646176,-1773.836,7.5e-05,2]
[344359627,1733370646191,-94260.3336086,7.5e-05,2]
[344359631,1733370646204,-67800.0001,7.5e-05,2]
[344359635,1733370646218,-449994.98999949,7.5e-05,2]
[344359639,1733370646231,-1371.7235,7.5e-05,2]
[344359672,1733370646785,-50039.5999997,7.5e-05,2]
[344359673,1733370646797,-13501.07126097,7.5e-05,2]
[344359674,1733370646808,-3845.90000007,7.5e-05,2]
[344359678,1733370991367,23900.0,6.93e-05,2]
[344359681,1733371028364,250.0,6.93e-05,2]
[344359683,1733371165757,-500.0,7.6e-05,4]
[344359684,1733371165784,-500.0,7.68e-05,6]
[344359685,1733371165825,-500.0,7.7e-05,4]
[344359686,1733371165847,-255.0,7.7e-05,4]
[344359687,1733371165872,-255.0,7.8e-05,5]
[344359688,1733371165894,-269.21,7.8e-05,4]
[344359689,1733371165918,-500.0,8e-05,4]
[344359691,1733371319083,217.01,6.976e-05,2]
[344359694,1733371476201,741.35,7.03e-05,2]
[344359696,1733371565378,-100000.0,8.439e-05,7]
[344359697,1733371581017,4343.17,6.931e-05,2]
[344359698,1733371601324,-300000.0,8.439e-05,7]
[344359699,1733371611282,-158890.082511,8.439e-05,7]
[344359700,1733371622683,20576.89488385,6.931e-05,2]
[344359701,1733371622714,3323.10511615,6.931e-05,2]
[344359702,1733371663235,250.0,6.931e-05,2]
[344359703,1733371707482,700.0,0.00021,120]
[344359710,1733371832096,-559.7669,7.399e-05,2]
[344359711,1733371832107,-206.94431484,7.399e-05,2]
[344359712,1733371832128,-213.50367876,7.399e-05,2]
[344359713,1733371832140,-300.0,7.399e-05,2]
[344359714,1733371832151,-926.74390029,7.399e-05,2]
[344359715,1733371832162,-8424.674,7.4e-05,2]
[344359716,1733371832175,-500.0,7.473e-05,2]
[344359717,1733371832187,-1764.28556516,7.473e-05,2]
[344359718,1733371832205,-550.0,7.473e-05,2]
[344359719,1733371832217,-6410.80482677,7.473e-05,2]
[344359720,1733371832227,-480.0,7.49e-05,2]
[344359721,1733371832237,-1000.0,7.49e-05,2]
[344359722,1733371832247,-428.79317323,7.49e-05,2]
[344359723,1733371832266,-571.20682677,7.49e-05,2]
[344359724,1733371832276,-150.0,7.497e-05,2]
[344359725,1733371832286,-241.31049554,7.498e-05,2]
[344359726,1733371832296,-2440.54,7.498e-05,2]
[344359727,1733371832306,-500.0,7.498e-05,2]
[344359728,1733371832316,-471.47738731,7.498e-05,2]
[344359729,1733371832325,-500.0,7.498e-05,2]
[344359730,1733371832335,-1635.71,7.498e-05,2]
[344359731,1733371832345,-500.0,7.498e-05,2]
[344359732,1733371832355,-500.00000001,7.498e-05,2]
[344359733,1733371832365,-500.0,7.498e-05,2]
[344359734,1733371832375,-500.0,7.498e-05,2]
[344359735,1733371832389,-500.0,7.498e-05,2]
[344359736,1733371832399,-336.94061939,7.498e-05,2]
[344359737,1733371832408,-532.61779886,7.498e-05,2]
[344359738,1733371832417,-500.0,7.498e-05,2]
[344359739,1733371832427,-430.51705867,7.498e-05,2]
[344359740,1733371832436,-505.6165143,7.498e-05,2]
[344359741,1733371832446,-508.03672992,7.498e-05,2]
[344359742,1733371832456,-500.0,7.498e-05,2]
[344359743,1733371832467,-500.0,7.498e-05,2]
[344359744,1733371832478,-500.0,7.498e-05,2]
[344359745,1733371832488,-513.48633605,7.498e-05,2]
[344359746,1733371832498,-503.33463255,7.498e-05,2]
[344359747,1733371832508,-500.0,7.499e-05,2]
[344359748,1733371832519,-190.28998476,7.499e-05,2]
[344359749,1733371832530,-500.41388009,7.499e-05,2]
[344359750,1733371832546,-501.43959576,7.499e-05,2]
[344359751,1733371832556,-545.2624144,7.499e-05,2]
[344359752,1733371832566,-500.7570411,7.499e-05,2]
[344359753,1733371832581,-588.81870872,7.499e-05,2]
[344359754,1733371832591,-500.0,7.499e-05,2]
[344359755,1733371832601,-500.0,7.499e-05,2]
[344359756,1733371832611,-500.0,7.499e-05,2]
[344359757,1733371832621,-500.0,7.499e-05,2]
[344359758,1733371832635,-500.0,7.499e-05,2]
[344359759,1733371832644,-500.0,7.499e-05,2]
[344359760,1733371832654,-509.59172611,7.499e-05,2]
[344359761,1733371832665,-501.26776231,7.499e-05,2]
[344359762,1733371832677,-500.76427321,7.499e-05,2]
[344359763,1733371832686,-500.94097407,7.499e-05,2]
[344359764,1733371832696,-500.0,7.499e-05,2]
[344359765,1733371832705,-500.0,7.499e-05,2]
[344359766,1733371832715,-500.0,7.499e-05,2]
[344359767,1733371832725,-500.0,7.499e-05,2]
[344359768,1733371832734,-500.0,7.499e-05,2]
[344359769,1733371832744,-500.0,7.499e-05,2]
[344359770,1733371832754,-500.0,7.499e-05,2]
[344359771,1733371832764,-500.0,7.499e-05,2]
[344359772,1733371832773,-500.0,7.499e-05,2]
[344359773,1733371832783,-500.0,7.499e-05,2]
[344359774,1733371832794,-330.07118338,7.499e-05,2]
[344359775,1733371832803,-192.33213353,7.499e-05,2]
[344359776,1733371832813,-500.0,7.499e-05,2]
[344359777,1733371832823,-181.56799736,7.499e-05,2]
[344359778,1733371832833,-500.57716664,7.499e-05,2]
[344359779,1733371832843,-500.0,7.499e-05,2]
[344359780,1733371832853,-234.51821035,7.499e-05,2]
[344359781,1733371832863,-502.99456969,7.499e-05,2]
[344359782,1733371832874,-500.0,7.499e-05,2]
[344359783,1733371832889,-500.0,7.499e-05,2]
[344359784,1733371832899,-500.0,7.499e-05,2]
[344359785,1733371832909,-500.0,7.499e-05,2]
[344359786,1733371832919,-500.0,7.499e-05,2]
[344359787,1733371832930,-501.5415408,7.499e-05,2]
[344359788,1733371832940,-500.0,7.499e-05,2]
[344359789,1733371832950,-500.0,7.499e-05,2]
[344359790,1733371832960,-500.0,7.499e-05,2]
[344359791,1733371832969,-500.40814069,7.499e-05,2]
[344359792,1733371832979,-668.57,7.499e-05,2]
[344359793,1733371832989,-668.57,7.499e-05,2]
[344359794,1733371832999,-668.57,7.499e-05,2]
[344359795,1733371833009,-668.57,7.499e-05,2]
[344359796,1733371833019,-668.57,7.499e-05,2]
[344359797,1733371833029,-668.57,7.499e-05,2]
[344359798,1733371833042,-668.57,7.499e-05,2]
[344359799,1733371833051,-668.57,7.499e-05,2]
[344359800,1733371833062,-668.57,7.499e-05,2]
[344359801,1733371833072,-668.57,7.499e-05,2]
[344359802,1733371833082,-668.57,7.499e-05,2]
[344359803,1733371833092,-668.57,7.499e-05,2]
[344359804,1733371833102,-668.57,7.499e-05,2]
[344359805,1733371833113,-668.57,7.499e-05,2]
[344359806,1733371833123,-668.57,7.499e-05,2]
[344359807,1733371833136,-668.57,7.499e-05,2]
[344359808,1733371833146,-668.57,7.499e-05,2]
[344359809,1733371833155,-668.57,7.499e-05,2]
[344359810,1733371833165,-668.57,7.499e-05,2]
[344359811,1733371833175,-668.57,7.499e-05,2]
[344359812,1733371833185,-668.57,7.499e-05,2]
[344359813,1733371833195,-668.57,7.499e-05,2]
[344359814,1733371833206,-668.57,7.499e-05,2]
[344359815,1733371833216,-500.0,7.499e-05,2]
[344359816,1733371833228,-668.64822668,7.499e-05,2]
[344359817,1733371833238,-500.0,7.499e-05,2]
[344359818,1733371833251,-500.0,7.499e-05,2]
[344359819,1733371833262,-500.0,7.499e-05,2]
[344359820,1733371833272,-500.0,7.499e-05,2]
[344359821,1733371833282,-500.0,7.499e-05,2]
[344359822,1733371833293,-500.0,7.499e-05,2]
[344359823,1733371833303,-500.0,7.499e-05,2]
[344359824,1733371833312,-500.0,7.499e-05,2]
[344359825,1733371833322,-500.0,7.499e-05,2]
[344359826,1733371833332,-500.0,7.499e-05,2]
[344359827,1733371833342,-500.0,7.499e-05,2]
[344359828,1733371833352,-500.0,7.499e-05,2]
[344359829,1733371833362,-500.0,7.499e-05,2]
[344359830,1733371833372,-500.0,7.499e-05,2]
[344359831,1733371833386,-507.02006855,7.499e-05,2]
[344359832,1733371833396,-500.0,7.499e-05,2]
[344359833,1733371833407,-201.76864408,7.499e-05,2]
[344359834,1733371833417,-501.4534812,7.499e-05,2]
[344359835,1733371833429,-2440.54,7.499e-05,2]
[344359836,1733371833439,-2440.54,7.499e-05,2]
[344359837,1733371833450,-2440.54,7.499e-05,2]
[344359838,1733371833460,-2440.54,7.499e-05,2]
[344359839,1733371833470,-2440.54,7.499e-05,2]
[344359840,1733371833481,-2440.54,7.499e-05,2]
[344359841,1733371833492,-2440.54,7.499e-05,2]
[344359842,1733371833502,-2440.54,7.499e-05,2]
[344359843,1733371833512,-2440.54,7.499e-05,2]
[344359844,1733371833522,-2440.54,7.499e-05,2]
[344359845,1733371833533,-2440.54,7.499e-05,2]
[344359846,1733371833547,-2440.54,7.499e-05,2]
[344359847,1733371833558,-2440.54,7.499e-05,2]
[344359848,1733371833568,-2440.54,7.499e-05,2]
[344359849,1733371833593,-2440.54,7.499e-05,2]
[344359850,1733371833605,-2440.54,7.499e-05,2]
[344359851,1733371833616,-2440.54,7.499e-05,2]
[344359852,1733371833627,-2440.54,7.499e-05,2]
[344359853,1733371833643,-2440.54,7.499e-05,2]
[344359854,1733371833653,-2440.54,7.499e-05,2]
[344359855,1733371833664,-2440.54,7.499e-05,2]
[344359856,1733371833674,-2440.54,7.499e-05,2]
[344359857,1733371833685,-2440.67977798,7.499e-05,2]
[344359858,1733371833694,-349.72479654,7.499e-05,2]
[344359859,1733371833705,-500.0,7.499e-05,2]
[344359860,1733371833715,-520.97290697,7.499e-05,2]
[344359861,1733371833725,-504.99237554,7.499e-05,2]
[344359862,1733371833736,-500.0,7.499e-05,2]
[344359863,1733371833746,-500.0,7.499e-05,2]
[344359864,1733371833756,-500.0,7.499e-05,2]
[344359865,1733371833767,-500.0,7.499e-05,2]
[344359866,1733371833777,-500.0,7.499e-05,2]
[344359867,1733371833787,-500.0,7.499e-05,2]
[344359868,1733371833797,-500.0,7.499e-05,2]
[344359869,1733371833808,-500.0,7.499e-05,2]
[344359870,1733371833818,-500.0,7.499e-05,2]
[344359871,1733371833828,-500.0,7.499e-05,2]
[344359872,1733371833838,-500.0,7.499e-05,2]
[344359873,1733371833848,-500.0,7.499e-05,2]
[344359874,1733371833858,-500.0,7.499e-05,2]
[344359875,1733371833868,-219.91395964,7.499e-05,2]
[344359876,1733371833879,-500.0,7.499e-05,2]
[344359877,1733371833892,-500.0,7.499e-05,2]
[344359878,1733371833902,-500.0,7.499e-05,2]
[344359879,1733371833911,-500.0,7.499e-05,2]
[344359880,1733371833922,-500.0,7.499e-05,2]
[344359881,1733371833932,-500.0,7.499e-05,2]
[344359882,1733371833942,-500.0,7.499e-05,2]
[344359883,1733371833952,-500.0,7.499e-05,2]
[344359884,1733371833962,-500.0,7.499e-05,2]
[344359885,1733371833972,-500.0,7.499e-05,2]
[344359886,1733371833982,-500.0,7.499e-05,2]
[344359887,1733371833993,-500.0,7.499e-05,2]
[344359888,1733371834003,-500.0,7.499e-05,2]
[344359889,1733371834018,-500.0,7.499e-05,2]
[344359890,1733371834029,-500.0,7.499e-05,2]
[344359891,1733371834039,-516.56,7.499e-05,2]
[344359892,1733371834049,-500.0,7.499e-05,2]
[344359893,1733371834060,-500.0,7.499e-05,2]
[344359894,1733371834071,-500.0,7.499e-05,2]
[344359895,1733371834082,-500.0,7.499e-05,2]
[344359896,1733371834092,-290.57959148,7.499e-05,2]
[344359897,1733371834103,-519.62696535,7.499e-05,2]
[344359898,1733371834115,-184.8166313,7.499e-05,2]
[344359899,1733371834126,-500.0,7.499e-05,2]
[344359900,1733371834139,-323.63068031,7.499e-05,2]
[344359901,1733371834150,-500.0,7.499e-05,2]
[344359902,1733371834161,-500.0,7.499e-05,2]
[344359903,1733371834173,-163.49914847,7.499e-05,2]
[344359904,1733371834184,-500.0,7.499e-05,2]
[344359905,1733371834195,-500.0,7.499e-05,2]
[344359906,1733371834206,-500.0,7.499e-05,2]
[344359907,1733371834217,-500.0,7.499e-05,2]
[344359908,1733371834228,-500.0,7.499e-05,2]
[344359909,1733371834238,-500.0,7.499e-05,2]
[344359910,1733371834250,-500.0,7.499e-05,2]
[344359911,1733371834261,-500.0,7.499e-05,2]
[344359912,1733371834273,-500.0,7.499e-05,2]
[344359913,1733371834285,-500.0,7.499e-05,2]
[344359914,1733371834297,-500.0,7.499e-05,2]
[344359915,1733371834308,-500.0,7.499e-05,2]
[344359916,1733371834320,-500.0,7.499e-05,2]
[344359917,1733371834331,-500.0,7.499e-05,2]
[344359918,1733371834343,-500.0,7.499e-05,2]
[344359919,1733371834354,-500.0,7.499e-05,2]
[344359920,1733371834366,-500.0,7.499e-05,2]
[344359921,1733371834377,-500.0,7.499e-05,2]
[344359922,1733371834391,-500.0,7.499e-05,2]
[344359923,1733371834402,-500.0,7.499e-05,2]
[344359924,1733371834414,-500.0,7.499e-05,2]
[344359925,1733371834425,-500.0,7.499e-05,2]
[344359926,1733371834435,-261.20005,7.499e-05,2]
[344359927,1733371834447,-1254.8,7.499e-05,2]
[344359928,1733371834457,-1254.8,7.499e-05,2]
[344359929,1733371834469,-1254.8,7.499e-05,2]
[344359930,1733371834480,-1254.8,7.499e-05,2]
[344359931,1733371834491,-1254.8,7.499e-05,2]
[344359932,1733371834503,-1254.8,7.499e-05,2]
[344359933,1733371834514,-1254.8,7.499e-05,2]
[344359934,1733371834525,-1254.8,7.499e-05,2]
[344359935,1733371834537,-1254.8,7.499e-05,2]
[344359936,1733371834550,-1254.8,7.499e-05,2]
[344359937,1733371834561,-1254.8,7.499e-05,2]
[344359938,1733371834572,-1254.8,7.499e-05,2]
[344359939,1733371834587,-1254.8,7.499e-05,2]
[344359940,1733371834600,-1254.8,7.499e-05,2]
[344359941,1733371834611,-500.0,7.499e-05,2]
[344359942,1733371834622,-1254.8,7.499e-05,2]
[344359943,1733371834636,-500.0,7.499e-05,2]